bitfinex-derivatives/quotes_SOLF0:USTF0_20250909
["timestamp","ask_amount","ask_price","bid_price","bid_amount"]
[1757415717893,7.15,217.88,217.81,1.92774726]
[1757415720293,7.15,217.88,217.79,7.8819]
[1757415722194,7.15,217.88,217.8,7.8817]
[1757415722697,7.15,217.88,217.82,3.75]
[1757415723998,7.15,217.88,217.79,7.882]
[1757415724198,7.15,217.88,217.79,3.75]
[1757415724497,10.16529099,217.88,217.73,7.60506403]
[1757415724696,7.15,217.84,217.73,3.75]
[1757415725494,7.15,217.84,217.69,3.75]
[1757415726694,0.03179329,217.79,217.69,3.75]
[1757415726888,7.15,217.78,217.69,3.75]
[1757415728397,7.15,217.78,217.69,6.76529099]
[1757415728597,7.15,217.78,217.7,3.75]
[1757415728797,7.15,217.78,217.72,3.75]
[1757415729793,0.03179329,217.79,217.73,3.75]
[1757415730906,0.03179329,217.79,217.73,7.883]
[1757415734901,0.03179329,217.79,217.75,3.76]
[1757415735297,0.03179329,217.79,217.74,4.1328]
[1757415735502,0.03179329,217.79,217.75,3.76]
[1757415735701,0.03179329,217.79,217.74,4.1328]
[1757415736400,0.03179329,217.79,217.67,3.85506403]
[1757415736401,0.03179329,217.79,217.73,3.76]
[1757415737305,7.65,217.78,217.73,3.76]
[1757415737506,7.65,217.78,217.68,3.01529099]
[1757415737507,7.65,217.78,217.69,3.76]
[1757415739903,7.65,217.78,217.7,3.76]
[1757415740902,7.65,217.78,217.7,4.1334]
[1757415741104,7.65,217.78,217.71,3.76]
[1757415746615,7.65,217.78,217.68,6.77529099]
[1757415751322,7.65,217.78,217.69,3.76]
[1757415753423,7.65,217.78,217.66,3.76]
[1757415754823,7.65,217.78,217.67,3.74]
[1757415756720,35.97,217.78,217.68,3.74]
[1757415757326,35.97,217.78,217.69,3.74]
[1757415757327,7.65,217.78,217.69,3.74]
[1757415757524,7.65,217.78,217.7,3.01529099]
[1757415757725,7.65,217.78,217.71,3.74]
[1757415760534,7.65,217.78,217.67,6.75529099]
[1757415763826,7.63,217.81,217.68,3.75]
[1757415765426,7.63,217.81,217.69,4.1334]
[1757415765630,108.89,217.81,217.7,3.75]
[1757415770629,108.89,217.81,217.67,3.01529099]
[1757415771028,111.90529099,217.81,217.67,3.01529099]
[1757415771430,111.90529099,217.81,217.66,3.75]
[1757415772032,7.63,217.75,217.66,3.75]
[1757415774235,7.63,217.75,217.6,0.79956805]
[1757415774236,7.63,217.75,217.61,3.75]
[1757415776235,7.63,217.75,217.62,3.75]
[1757415776634,30.78,217.74,217.62,3.75]
[1757415776833,7.63,217.73,217.62,3.75]
[1757415782431,7.63,217.71,217.63,1.93284607]
[1757415783433,7.63,217.71,217.64,3.75]
[1757415783631,7.63,217.71,217.67,1.93284607]
[1757415783835,7.63,217.75,217.69,1.93284607]
[1757415784543,7.63,217.75,217.72,3.75]
[1757415785438,7.63,217.76,217.72,3.75]
[1757415785735,165.70837739,217.77,217.72,3.75]
[1757415785940,7.63,217.76,217.72,3.75]
[1757415786841,165.70837739,217.77,217.72,3.75]
[1757415787035,7.63,217.76,217.72,3.75]
[1757415787540,165.70837739,217.77,217.72,3.75]
[1757415787739,7.63,217.76,217.72,3.75]
[1757415788040,165.70837739,217.77,217.71,1.93284607]
[1757415789637,7.63,217.76,217.71,1.93284607]
[1757415789843,1.93284607,217.72,217.63,1.93284607]
[1757415790039,7.63,217.71,217.63,1.93284607]
[1757415793635,7.63,217.71,217.65,5.68284607]
[1757415795142,7.63,217.71,217.67,5.68284607]
[1757415796148,7.63,217.71,217.68,3.75]
[1757415796644,115.11284607,217.75,217.67,1.93284607]
[1757415796845,7.01,217.71,217.67,1.93284607]
[1757415797349,0.03384791,217.72,217.67,1.93284607]
[1757415797746,8.94284607,217.71,217.63,1.93284607]
[1757415797942,8.94284607,217.71,217.57,3.75]
[1757415798247,7.01,217.68,217.59,1.93284607]
[1757415798451,7.01,217.68,217.62,3.75]
[1757415798647,7.01,217.68,217.65,1.93284607]
[1757415798845,7.01,217.68,217.65,5.68284607]
[1757415804252,7.01,217.72,217.65,1.93284607]
[1757415804642,7.01,217.72,217.69,1.93284607]
[1757415805045,7.01,217.72,217.69,5.68284607]
[1757415806048,7.01,217.76,217.71,1.93284607]
[1757415806253,7.01,217.77,217.71,1.93284607]
[1757415806951,7.01,217.77,217.69,1.93284607]
[1757415809151,1.93284607,217.76,217.69,1.93284607]
[1757415809345,7.01,217.75,217.69,1.93284607]
[1757415809545,7.01,217.75,217.68,1.93284607]
[1757415811154,7.01,217.75,217.65,3.75]
[1757415811350,7.01,217.73,217.66,1.93284607]
[1757415812460,7.01,217.73,217.58,3.85506403]
[1757415812461,7.01,217.75,217.68,1.93284607]
[1757415812654,7.01,217.75,217.71,3.75]
[1757415813054,90.48,217.77,217.71,3.75]
[1757415813260,7.01,217.77,217.71,3.75]
[1757415813456,7.01,217.77,217.62,64.3201]
[1757415813457,7.01,217.77,217.72,1.93284607]
[1757415813656,7.01,217.77,217.74,1.93284607]
[1757415813856,7.01,217.79,217.74,1.93284607]
[1757415814053,7.01,217.79,217.73,3.75]
[1757415814361,7.01,217.79,217.72,1.93284607]
[1757415815359,7.01,217.79,217.7,3.75]
[1757415815755,7.01,217.79,217.72,1.93284607]
[1757415815956,8.94284607,217.79,217.72,1.93284607]
[1757415817163,8.94284607,217.79,217.7,3.75]
[1757415817363,7.01,217.79,217.71,1.93284607]
[1757415819761,120.15,217.79,217.71,1.93284607]
[1757415820460,120.15,217.79,217.7,3.75]
[1757415820658,120.15,217.79,217.72,1.93284607]
[1757415822469,120.15,217.79,217.73,1.93284607]
[1757415823172,120.15,217.79,217.72,1.93284607]
[1757415825766,122.08284607,217.79,217.7,3.75]
[1757415825971,120.15,217.79,217.71,1.93284607]
[1757415826171,122.08284607,217.79,217.71,1.93284607]
[1757415827169,120.15,217.79,217.71,1.93284607]
[1757415828867,120.15,217.79,217.73,1.93284607]
[1757415830475,120.15,217.79,217.71,3.75]
[1757415830673,120.15,217.79,217.73,1.93284607]
[1757415831871,122.08284607,217.79,217.71,1.93284607]
[1757415835578,122.08284607,217.79,217.7,3.75]
[1757415835579,120.15,217.79,217.73,1.93284607]
[1757415836079,7.16,217.78,217.75,1.93284607]
[1757415836578,7.16,217.78,217.75,5.68284607]
[1757415836979,7.16,217.78,217.75,3.75]
[1757415838978,7.16,217.78,217.74,1.93284607]
[1757415839178,7.16,217.78,217.74,5.68284607]
[1757415840887,7.16,217.78,217.72,1.93284607]
[1757415844275,7.16,217.78,217.71,3.75]
[1757415844779,7.16,217.78,217.72,3.01769964]
[1757415847284,163.05533402,217.81,217.73,3.75]
[1757415847480,276.11533402,217.81,217.73,3.75]
[1757415848875,276.11533402,217.81,217.74,7.80480137]
[1757415849073,276.11533402,217.81,217.75,3.67230137]
[1757415849272,268.95533402,217.81,217.76,7.42230137]
[1757415849486,268.95533402,217.81,217.76,3.75]
[1757415849674,7.16,217.8,217.76,3.75]
[1757415849872,268.95533402,217.81,217.76,3.75]
[1757415850282,7.16,217.8,217.76,3.75]
[1757415850581,268.95533402,217.81,217.76,3.75]
[1757415850778,7.16,217.8,217.76,3.75]
[1757415851178,268.95533402,217.81,217.76,3.75]
[1757415851779,7.16,217.8,217.76,3.75]
[1757415851981,7.16,217.8,217.75,3.01769964]
[1757415852177,268.95533402,217.81,217.76,7.42146689]
[1757415852483,7.16,217.8,217.76,3.75]
[1757415852682,268.95533402,217.81,217.75,6.76769964]
[1757415852876,7.16,217.8,217.77,3.75]
[1757415853078,268.95533402,217.81,217.75,6.76769964]
[1757415853279,268.95533402,217.81,217.76,3.67050902]
[1757415853484,268.95533402,217.81,217.75,6.76769964]
[1757415853684,7.57,217.8,217.76,3.67050902]
[1757415853884,113.06,217.81,217.75,6.76769964]
[1757415854087,7.57,217.8,217.76,3.67050902]
[1757415854286,7.57,217.8,217.75,6.76769964]
[1757415854488,113.06,217.81,217.76,3.75]
[1757415854885,7.57,217.8,217.76,3.75]
[1757415855578,113.06,217.81,217.76,3.75]
[1757415855783,7.57,217.8,217.76,3.75]
[1757415856689,113.06,217.81,217.76,3.75]
[1757415856989,7.57,217.8,217.76,3.75]
[1757415857183,120.63,217.81,217.78,3.01769964]
[1757415857584,120.63,217.81,217.79,3.75]
[1757415857886,113.02,217.85,217.79,3.75]
[1757415858091,120.59,217.85,217.79,3.75]
[1757415858691,120.59,217.85,217.82,3.75]
[1757415858882,7.57,217.85,217.81,3.01769964]
[1757415859082,7.57,217.85,217.82,3.75]
[1757415859280,7.57,217.85,217.81,3.01769964]
[1757415859486,7.57,217.85,217.82,3.75]
[1757415862191,113.0,217.89,217.82,3.75]
[1757415862392,7.57,217.88,217.82,3.75]
[1757415869295,7.57,217.88,217.84,3.01769964]
[1757415869492,113.0,217.89,217.84,6.76769964]
[1757415870093,113.0,217.89,217.85,3.75]
[1757415870290,7.57,217.88,217.85,3.75]
[1757415871396,7.57,217.88,217.84,7.14829964]
[1757415871596,7.57,217.88,217.85,3.75]
[1757415872192,7.57,217.88,217.84,7.14829964]
[1757415872898,7.57,217.88,217.85,3.75]
[1757415876603,7.57,217.88,217.84,7.14829964]
[1757415876804,7.57,217.88,217.85,3.75]
[1757415878199,7.57,217.88,217.84,7.14829964]
[1757415878503,7.57,217.88,217.85,3.75]
[1757415879397,112.94,217.93,217.85,3.75]
[1757415879603,7.57,217.92,217.85,3.75]
[1757415892717,112.94,217.93,217.87,3.01769964]
[1757415892919,7.03,217.92,217.87,6.76769964]
[1757415893118,7.03,217.92,217.87,3.01769964]
[1757415893315,112.94,217.93,217.87,3.01769964]
[1757415894316,7.03,217.92,217.87,3.01769964]
[1757415894518,112.94,217.93,217.87,3.01769964]
[1757415895019,7.03,217.92,217.87,3.01769964]
[1757415897322,112.94,217.93,217.87,3.01769964]
[1757415897520,7.03,217.92,217.87,3.01769964]
[1757415898115,7.03,217.92,217.85,3.75]
[1757415898320,7.03,217.92,217.86,3.01769964]
[1757415900419,7.03,217.92,217.83,3.01769964]
[1757415901419,7.03,217.92,217.84,3.67352292]
[1757415901723,7.03,217.92,217.83,3.01769964]
[1757415902022,7.03,217.92,217.84,3.67352234]
[1757415902223,7.03,217.92,217.83,3.01769964]
[1757415902525,7.03,217.92,217.84,3.67537292]
[1757415902822,7.03,217.92,217.83,3.01769964]
[1757415903024,7.03,217.92,217.84,3.67537292]
[1757415903225,7.03,217.92,217.83,3.01769964]
[1757415903421,7.03,217.92,217.84,3.67627934]
[1757415903621,7.03,217.92,217.83,3.01769964]
[1757415903822,7.03,217.92,217.84,3.67627934]
[1757415904026,7.03,217.92,217.83,3.01769964]
[1757415904325,7.03,217.92,217.84,3.67627934]
[1757415904525,7.03,217.92,217.83,3.01769964]
[1757415904725,7.03,217.92,217.84,3.67657823]
[1757415904924,7.03,217.92,217.83,3.01769964]
[1757415905225,7.03,217.92,217.84,3.67657823]
[1757415905427,7.03,217.92,217.84,3.75]
[1757415906132,7.03,217.92,217.86,6.76769964]
[1757415906316,7.03,217.92,217.9,1.92827819]
[1757415906628,112.94,217.93,217.9,1.92827819]
[1757415906826,7.03,217.92,217.9,1.92827819]
[1757415907329,112.94,217.93,217.9,1.92827819]
[1757415908528,7.03,217.92,217.9,1.92827819]
[1757415908825,112.94,217.93,217.9,1.92827819]
[1757415909023,7.03,217.92,217.9,1.92827819]
[1757415910128,112.94,217.93,217.9,1.92827819]
[1757415911424,7.03,217.92,217.9,1.92827819]
[1757415911728,112.94,217.93,217.9,1.92827819]
[1757415911927,7.03,217.92,217.9,1.92827819]
[1757415912122,112.94,217.93,217.9,1.92827819]
[1757415912323,7.03,217.92,217.9,1.92827819]
[1757415912525,112.94,217.93,217.9,1.92827819]
[1757415912724,7.03,217.92,217.9,1.92827819]
[1757415912925,112.94,217.93,217.9,1.92827819]
[1757415913628,7.16,217.92,217.9,1.92827819]
[1757415913928,112.94,217.93,217.9,1.92827819]
[1757415914428,7.16,217.92,217.9,1.92827819]
[1757415914829,112.94,217.93,217.9,1.92827819]
[1757415915636,7.16,217.92,217.9,1.92827819]
[1757415915823,112.94,217.93,217.9,1.92827819]
[1757415916026,7.16,217.92,217.9,1.92827819]
[1757415917332,112.94,217.93,217.9,1.92827819]
[1757415917529,7.16,217.92,217.9,1.92827819]
[1757415917726,112.94,217.93,217.9,1.92827819]
[1757415919132,7.16,217.92,217.9,1.92827819]
[1757415919433,112.94,217.93,217.9,1.92827819]
[1757415919935,7.16,217.92,217.9,1.92827819]
[1757415920233,112.94,217.93,217.9,1.92827819]
[1757415920831,7.16,217.92,217.9,1.92827819]
[1757415921832,7.16,217.92,217.89,1.92827819]
[1757415922637,112.94,217.93,217.89,1.92827819]
[1757415922832,7.16,217.92,217.89,1.92827819]
[1757415923041,112.94,217.93,217.89,1.92827819]
[1757415923738,7.16,217.92,217.89,1.92827819]
[1757415924338,112.94,217.93,217.89,1.92827819]
[1757415924536,7.16,217.92,217.89,1.92827819]
[1757415925237,112.94,217.93,217.89,1.92827819]
[1757415925537,7.16,217.92,217.89,1.92827819]
[1757415925735,112.94,217.93,217.89,1.92827819]
[1757415925931,7.16,217.92,217.89,5.67827819]
[1757415926438,112.94,217.93,217.89,5.67827819]
[1757415928037,7.16,217.92,217.89,5.67827819]
[1757415928434,112.94,217.93,217.89,5.67827819]
[1757415928935,7.16,217.92,217.89,5.67827819]
[1757415929129,112.94,217.93,217.89,5.67827819]
[1757415929839,7.16,217.92,217.89,5.67827819]
[1757415930034,112.94,217.93,217.89,5.67827819]
[1757415930235,7.16,217.92,217.89,5.67827819]
[1757415930438,9.56131005,217.99,217.91,1.92827819]
[1757415930439,7.16,217.98,217.91,1.92827819]
[1757415930638,7.16,217.98,217.89,3.75]
[1757415930639,119.84,217.98,217.93,1.92827819]
[1757415930839,251.18716807,218.06,217.96,1.92827819]
[1757415930840,7.16,218.02,217.96,1.92827819]
[1757415936141,9.08827819,218.02,217.93,1.92827819]
[1757415936846,7.16,217.99,217.93,1.92827819]
[1757415937047,119.8,217.99,217.93,1.92827819]
[1757415942550,119.8,217.99,217.91,1.92827819]
[1757415944146,119.8,217.99,217.9,3.74]
[1757415944449,119.8,217.99,217.91,1.92827819]
[1757415945548,7.15,217.95,217.88,1.92827819]
[1757415946652,7.15,217.96,217.9,1.92827819]
[1757415951353,7.15,217.96,217.88,3.75]
[1757415951553,7.15,217.96,217.89,1.92827819]
[1757415952052,7.15,217.96,217.88,3.75]
[1757415952252,7.15,217.94,217.86,3.75]
[1757415952454,7.15,217.94,217.86,5.67827819]
[1757415952958,7.15,217.91,217.86,5.67827819]
[1757415953457,7.18469918,217.92,217.86,5.67827819]
[1757415954646,7.18469918,217.92,217.89,3.75]
[1757415955053,7.15,217.92,217.89,3.75]
[1757415955355,0.03072841,217.93,217.88,5.67827819]
[1757415956754,7.15,217.92,217.88,5.67827819]
[1757415957147,0.03072841,217.93,217.88,5.67827819]
[1757415957343,7.15,217.92,217.88,5.67827819]
[1757415957552,0.03072841,217.93,217.88,5.67827819]
[1757415958155,7.15,217.92,217.88,5.67827819]
[1757415958356,0.03072841,217.93,217.88,5.67827819]
[1757415958550,7.15,217.92,217.88,5.67827819]
[1757415958856,0.03072841,217.93,217.88,5.67827819]
[1757415959056,7.15,217.92,217.88,5.67827819]
[1757415960145,0.03072841,217.93,217.88,5.67827819]
[1757415960346,0.03072841,217.93,217.91,3.75]
[1757415960548,0.03072841,217.93,217.8,64.2675]
[1757415960754,7.15,217.95,217.9,1.92827819]
[1757415960949,7.15,217.94,217.91,3.75]
[1757415961346,7.18056918,217.95,217.91,3.75]
[1757415962154,7.15,217.94,217.91,3.75]
[1757415962354,0.03056918,217.95,217.91,3.75]
[1757415963259,7.15,217.94,217.88,5.67827819]
[1757415963551,7.15,217.94,217.88,1.92827819]
[1757415964561,7.15,217.92,217.88,5.67827819]
[1757415964755,0.02911673,217.93,217.88,3.75]
[1757415964955,7.15,217.92,217.88,3.75]
[1757415965155,0.02911673,217.93,217.88,3.75]
[1757415965352,7.15,217.92,217.86,1.92827819]
[1757415965555,7.15,217.92,217.87,3.75]
[1757415965758,7.17911673,217.93,217.87,3.75]
[1757415971457,7.15,217.89,217.77,3.75]
[1757415971663,119.69,217.89,217.78,3.66787901]
[1757415971861,119.69,217.89,217.79,3.66787901]
[1757415972161,119.69,217.89,217.77,3.75]
[1757415972360,0.0327012,217.86,217.78,3.66656506]
[1757415972562,7.15,217.85,217.79,3.66656506]
[1757415972758,7.15,217.85,217.77,3.75]
[1757415973065,7.15,217.85,217.78,3.66660108]
[1757415973269,7.15,217.85,217.79,3.66660108]
[1757415973461,7.15,217.85,217.77,3.75]
[1757415973663,7.15,217.85,217.78,3.66536622]
[1757415973865,7.15,217.85,217.79,3.66536622]
[1757415974166,7.15,217.85,217.77,3.75]
[1757415974360,7.15,217.85,217.78,3.66428711]
[1757415974553,7.15,217.85,217.77,3.75]
[1757415978463,7.15,217.85,217.71,3.01364339]
[1757415978769,7.15,217.85,217.73,3.75]
[1757415978970,7.15,217.85,217.74,3.65982643]
[1757415979171,7.18921946,217.8,217.73,3.75]
[1757415979475,7.18921946,217.8,217.74,3.6584938]
[1757415979671,7.18921946,217.8,217.73,3.75]
[1757415979868,7.18921946,217.8,217.74,3.6588478]
[1757415980173,7.18921946,217.8,217.73,3.75]
[1757415980374,7.18921946,217.8,217.74,3.65759032]
[1757415980672,7.18921946,217.8,217.73,3.75]
[1757415980876,7.18921946,217.8,217.74,3.6579843]
[1757415981173,7.18921946,217.8,217.73,3.75]
[1757415983572,7.18921946,217.8,217.74,7.40398583]
[1757415983772,7.18921946,217.8,217.74,3.75]
[1757415983973,0.02921946,217.8,217.74,3.75]
[1757415986273,0.02921946,217.8,217.75,3.01364339]
[1757415986466,0.02921946,217.8,217.76,3.75]
[1757415986670,0.02921946,217.8,217.75,3.01364339]
[1757415986880,0.02921946,217.8,217.76,3.75]
[1757415987178,0.02921946,217.8,217.75,3.01364339]
[1757415987374,0.02921946,217.8,217.76,3.75]
[1757415987979,0.02921946,217.8,217.75,3.01364339]
[1757415988174,7.18921946,217.8,217.75,3.01364339]
[1757415988375,7.18921946,217.8,217.76,3.75]
[1757415988579,7.18921946,217.8,217.75,3.01364339]
[1757415989874,7.18921946,217.8,217.76,3.75]
[1757415990080,7.18921946,217.8,217.75,3.01364339]
[1757415991276,7.18921946,217.8,217.76,3.75]
[1757415991678,7.18921946,217.8,217.75,3.01364339]
[1757415991883,7.18921946,217.8,217.76,3.75]
[1757415992487,7.18921946,217.8,217.73,4.1327]
[1757415992682,7.18921946,217.8,217.74,6.66796202]
[1757415992986,7.18921946,217.8,217.75,3.65431863]
[1757415993180,7.18921946,217.8,217.74,3.01364339]
[1757415993377,7.18921946,217.8,217.75,3.654368]
[1757415993584,0.02921946,217.8,217.78,3.75]
[1757415993780,7.16,217.87,217.78,3.75]
[1757415993983,7.16,217.87,217.81,3.75]
[1757415994287,7.16,217.87,217.75,3.75]
[1757415994483,7.16,217.87,217.77,6.76364339]
[1757415994689,7.16,217.87,217.79,3.75]
[1757415995077,7.16,217.87,217.81,0.0310883]
[1757416007200,7.16,217.87,217.82,3.74]
[1757416007401,7.16,217.87,217.81,0.0310883]
[1757416007602,7.16,217.87,217.82,3.65977044]
[1757416007800,7.16,217.87,217.82,3.74]
[1757416007999,7.16,217.87,217.81,0.0310883]
[1757416008202,7.16,217.87,217.83,3.74]
[1757416008399,7.44,217.92,217.81,6.78473169]
[1757416008600,7.44,217.92,217.81,3.7710883]
[1757416008799,7.44,217.92,217.82,3.66033347]
[1757416008999,7.44,217.92,217.84,0.03166004]
[1757416014503,7.44,217.92,217.84,3.77166004]
[1757416020111,7.44,217.92,217.84,0.03166004]
[1757416026210,7.44,217.92,217.84,0.03166004]
[1757416027207,7.44,217.92,217.85,3.74]
[1757416030423,7.44,217.92,217.85,5.66903522]
[1757416030921,7.44,217.92,217.85,1.92903522]
[1757416032625,7.44,217.92,217.84,0.03166004]
[1757416032822,7.44,217.92,217.86,1.92903522]
[1757416035325,7.44,217.92,217.84,0.03166004]
[1757416035526,7.44,217.92,217.84,1.96069526]
[1757416035722,9.36903522,217.92,217.84,1.96069526]
[1757416037427,7.44,217.92,217.86,1.92903522]
[1757416038125,7.44,217.92,217.86,5.67903522]
[1757416038328,7.12,217.95,217.88,1.92903522]
[1757416038923,7.12,217.95,217.89,0.03210897]
[1757416044533,7.12,217.95,217.89,3.78210897]
[1757416044732,164.32811433,217.96,217.9,1.92903522]
[1757416044933,7.12,217.95,217.9,1.92903522]
[1757416045131,164.32811433,217.96,217.9,1.92903522]
[1757416045338,7.12,217.95,217.9,1.92903522]
[1757416045533,164.32811433,217.96,217.9,1.92903522]
[1757416045939,7.12,217.95,217.9,1.92903522]
[1757416046237,164.32811433,217.96,217.9,1.92903522]
[1757416046634,164.32811433,217.96,217.9,5.67903522]
[1757416046941,7.12,217.95,217.9,5.67903522]
[1757416047130,7.12,217.95,217.92,1.92903522]
[1757416047536,7.12,217.95,217.89,3.78210897]
[1757416047840,164.32811433,217.96,217.92,1.92903522]
[1757416048338,7.12,217.95,217.92,1.92903522]
[1757416048534,164.32811433,217.96,217.92,1.92903522]
[1757416048837,7.12,217.95,217.92,1.92903522]
[1757416049232,164.32811433,217.96,217.92,1.92903522]
[1757416050037,7.12,217.95,217.92,1.92903522]
[1757416050734,7.12,217.95,217.94,1.92903522]
[1757416051040,164.32811433,217.96,217.94,1.92903522]
[1757416051232,164.32811433,217.96,217.94,5.67903522]
[1757416051838,164.32811433,217.96,217.95,3.75]
[1757416052039,164.32811433,217.96,217.94,5.67903522]
[1757416052237,7.12,217.98,217.94,1.92903522]
[1757416052542,7.12,218.05,217.97,1.92903522]
[1757416053442,7.12,218.05,217.99,0.03199979]
[1757416055437,7.63303186,218.11,217.99,0.03199979]
[1757416055438,1.92903522,218.04,217.99,0.03199979]
[1757416055640,7.12,218.03,217.99,0.03199979]
[1757416056242,1.92903522,218.04,217.99,0.03199979]
[1757416056443,7.12,218.03,217.99,0.03199979]
[1757416056943,1.92903522,218.04,217.99,0.03199979]
[1757416057240,7.12,218.03,217.99,0.03199979]
[1757416057431,1.92903522,218.04,217.99,0.03199979]
[1757416057837,1.92903522,218.05,217.99,0.03199979]
[1757416058041,7.12,218.04,217.99,0.03199979]
[1757416059844,1.92903522,218.03,217.99,0.03199979]
[1757416060045,7.12,218.02,217.99,0.03199979]
[1757416060246,7.12,218.02,217.95,3.75]
[1757416060445,7.12,218.02,217.98,0.03130303]
[1757416060847,1.92903522,218.03,217.98,0.03130303]
[1757416061046,7.12,218.02,217.98,0.03130303]
[1757416061242,1.92903522,218.03,217.98,0.03130303]
[1757416061543,7.12,218.02,217.98,0.03130303]
[1757416061938,1.92903522,218.03,217.98,0.03130303]
[1757416062145,7.12,218.02,217.98,0.03130303]
[1757416062545,1.92903522,218.03,217.98,0.03130303]
[1757416063137,7.12,218.02,217.98,0.03130303]
[1757416063340,1.92903522,218.03,217.98,0.03130303]
[1757416063544,7.31,218.02,217.98,0.03130303]
[1757416063847,1.92903522,218.03,217.98,0.03130303]
[1757416064742,7.31,218.02,217.98,0.03130303]
[1757416065148,1.92903522,218.03,217.98,0.03130303]
[1757416065650,7.31,218.02,217.98,0.03130303]
[1757416065849,1.92903522,218.03,217.98,0.03130303]
[1757416066540,7.31,218.02,217.98,0.03130303]
[1757416066949,7.31,218.02,217.98,3.77130303]
[1757416067251,1.92903522,218.03,217.98,0.03130303]
[1757416068240,7.31,218.02,217.98,0.03130303]
[1757416068440,1.92903522,218.03,217.98,0.03130303]
[1757416068644,7.31,218.02,217.98,0.03130303]
[1757416068844,1.92903522,218.03,217.98,0.03130303]
[1757416069243,7.31,218.02,217.98,0.03130303]
[1757416070041,1.92903522,218.03,217.98,0.03130303]
[1757416072156,7.31,218.02,217.98,0.03130303]
[1757416072657,1.92903522,218.03,217.98,0.03130303]
[1757416072861,7.31,218.02,217.98,0.03130303]
[1757416073061,1.92903522,218.03,217.98,0.03130303]
[1757416074363,7.31,218.02,217.98,0.03130303]
[1757416074564,1.92903522,218.03,217.98,0.03130303]
[1757416074960,7.31,218.02,217.98,0.03130303]
[1757416075160,1.92903522,218.03,217.98,0.03130303]
[1757416075354,7.31,218.02,217.98,0.03130303]
[1757416075560,1.92903522,218.03,217.98,3.77130303]
[1757416075859,7.31,218.02,217.98,3.77130303]
[1757416076059,1.92903522,218.03,217.98,0.03130303]
[1757416076259,7.31,218.02,217.98,0.03130303]
[1757416076666,1.92903522,218.03,217.98,0.03130303]
[1757416077059,7.31,218.02,217.98,0.03130303]
[1757416077461,1.92903522,218.03,217.98,0.03130303]
[1757416077765,7.31,218.12,217.98,0.03130303]
[1757416078063,1.92903522,218.03,217.95,3.74]
[1757416078264,7.31,218.02,217.95,3.74]
[1757416078666,7.31,218.02,217.96,0.02925887]
[1757416084570,1.92903522,217.99,217.96,0.02925887]
[1757416084867,7.31,217.98,217.91,3.74]
[1757416085170,7.31,217.98,217.95,0.03514935]
[1757416085367,1.92903522,217.99,217.95,0.03514935]
[1757416085762,7.31,217.98,217.95,0.03514935]
[1757416085967,1.92903522,217.99,217.95,0.03514935]
[1757416086167,7.31,217.98,217.95,0.03514935]
[1757416086867,7.31,217.96,217.95,0.03514935]
[1757416087167,7.31,217.96,217.81,3.85404289]
[1757416087366,7.31,217.92,217.84,1.92903522]
[1757416087567,7.31,217.9,217.81,1.92903522]
[1757416087767,7.31,217.9,217.81,9.84023522]
[1757416087971,7.31,217.9,217.83,1.92903522]
[1757416088464,0.03259117,217.89,217.84,3.78]
[1757416088864,0.03259117,217.89,217.83,1.92903522]
[1757416089263,7.34259117,217.89,217.84,3.78]
[1757416089462,7.34259117,217.89,217.83,1.92903522]
[1757416089463,7.34259117,217.89,217.83,5.70903522]
[1757416089964,7.34259117,217.89,217.85,1.92903522]